Cogmind - Beta 15 @@@ ROGUE MODE // 2025.06.30 @ 17:34:11 Player: EX-OCT Result: Destroyed by G-50 Soldier with Heavy Laser Performance ------------- Evolutions (4) 2000 Regions Visited (8) 1600 Robots Destroyed (14) 70 Value Destroyed (555) 555 Prototype IDs (7) 140 Alien Tech Used (0) 0 Bonus (1185) 1185 TOTAL SCORE: 5550 Bonus ------- Follower Combat Kills 185 Entered Garrisons 200 Registered with UFD 300 Met Optimus in HQ 500 Cogmind --------- Core Integrity 0/850 Matter 215/300 Energy 100/100 System Corruption 0% Temperature Cool (9) Movement Flying (32) Location -6/Lower Caves Parts ------- > --- POWER (1) -------- (None) > --- PROPULSION (6) --- Backup Propulsion III Backup Propulsion III VTOL Module Cesium-ion Thruster > --- UTILITY (6) ------ Advanced Visual Processing Unit Improved Signal Interpreter Advanced Signal Interpreter Advanced Targeting Computer System Shield Corruption Screen > --- WEAPON (2) ------- Backup Laser III Mini Grenade Launcher > --- INVENTORY (5) ---- Improved Cooling System Experimental Terrain Scan Processor Improved Phase Shifter Backup Laser III Peak State ------------ > --- POWER ------------ Backup Power III > --- PROPULSION ------- Backup Propulsion III Backup Propulsion III VTOL Module Cesium-ion Thruster > --- UTILITY ---------- Advanced Visual Processing Unit Improved Signal Interpreter Advanced Signal Interpreter Advanced Targeting Computer System Shield Corruption Screen > --- WEAPON ----------- Backup Laser III Mini Grenade Launcher > --- INVENTORY -------- Improved Cooling System Experimental Terrain Scan Processor Improved Phase Shifter Backup Laser III [Rating: 42] Favorites ----------- Power Light Ion Engine Engine Light Ion Engine Power Core Light Nuclear Core Propulsion Nuclear Pulse Thruster Hover Unit Backup Propulsion III Flight Unit Nuclear Pulse Thruster Utility Improved Signal Interpreter Device Improved Terrain Scanner Storage Large Storage Unit Processor Improved Signal Interpreter Hackware System Shield Protection Improved Light Armor Plating Weapon Maul Energy Gun Backup Laser III Ballistic Gun Assault Rifle Launcher Mini Grenade Launcher Impact Weapon Maul Build | -11 -10 -10 -10 -8 -6 -6 -6 -6 ------- Run | Yrd Mat Min Sub Scr Fac Gar Fac Low Slots Evolved 8 | . . . . . 8 . . . Power . | . . . . . . . . . Propulsion 4 | . . . . . 4 . . . Utility 4 | . . . . . 4 . . . Weapon . | . . . . . . . . . Parts Attached 30 | 2 3 3 2 6 9 2 3 . Power 3 | . . 1 . 1 1 . . . Engine 2 | . . 1 . 1 . . . . Core 1 | . . . . . 1 . . . Reactor . | . . . . . . . . . Propulsion 8 | . 1 1 . 3 1 . 2 . Treads . | . . . . . . . . . Leg . | . . . . . . . . . Wheel . | . . . . . . . . . Hover . | . . . . . . . . . Flight 8 | . 1 1 . 3 1 . 2 . Utility 14 | 1 1 . . 2 7 2 1 . Device 3 | 1 . . . . 2 . . . Storage 2 | . . . . 1 1 . . . Processor 6 | . 1 . . 1 1 2 1 . Hackware 2 | . . . . . 2 . . . Protection 1 | . . . . . 1 . . . Artifact . | . . . . . . . . . Weapon 5 | 1 1 1 2 . . . . . Energy Gun 2 | . . . 2 . . . . . Energy Cannon . | . . . . . . . . . Ballistic Gun 1 | 1 . . . . . . . . Ballistic Cannon . | . . . . . . . . . Launcher 1 | . . 1 . . . . . . Special Weapon . | . . . . . . . . . Impact Weapon 1 | . 1 . . . . . . . Slashing Weapon . | . . . . . . . . . Piercing Weapon . | . . . . . . . . . Special Melee Weapon . | . . . . . . . . . Unidentified Prototypes . | . . . . . . . . . Parts Lost 12 | . . . 1 . 8 2 1 . Power 3 | . . . . . 2 . 1 . Propulsion 5 | . . . . . 4 1 . . Utility 3 | . . . 1 . 2 . . . Weapon 1 | . . . . . . 1 . . Highest Loss Streak 5 | . . . 1 . 5 2 1 . To Critical Strikes . | . . . . . . . . . Average Backups 6 | 1 2 3 4 9 5 4 4 4 Power 1 | 1 2 2 2 1 . . . . Propulsion . | . . . . 1 . . . . Utility 3 | . . . . 5 4 3 3 3 Weapon . | . . 1 2 . . 1 1 1 Tool/Special . | . . . . . . . . . Unused Backups 29 | . . . 1 13 11 1 . 3 Power 5 | . . . 1 2 2 . . . Propulsion 8 | . . . . 5 3 . . . Utility 12 | . . . . 4 4 1 . 3 Weapon 4 | . . . . 2 2 . . . Tool/Special . | . . . . . . . . . Average Slot Usage (%) 82 | . 42 95 82 95 67 38 55 80 Engine 10 | . . 12 14 13 2 . 3 . Flight 23 | . 9 26 28 28 21 3 4 13 Device 2 | . 14 14 8 . 5 . . . Storage 7 | . . . . 12 4 . . . Processor 15 | . 4 14 14 13 12 22 26 33 Hackware 1 | . . . . . 8 6 6 6 Energy Gun 1 | . . . 9 . . . 3 6 Launcher 8 | . . 14 1 12 . . 1 6 Impact Weapon 9 | . 4 12 5 13 5 4 . . Peak Build Rating 42 | 4 8 12 12 23 37 23 42 39 Average Rating 18 | 1 5 11 9 18 30 19 28 39 On Entrance 13 | . 4 8 12 7 17 17 18 39 Naked Turns . | . . . . . . . . . Heaviest Build 27 | 3 4 8 11 27 19 3 6 3 Greatest Support 19 | 3 4 8 8 11 19 3 16 9 Greatest Overweight (x) 2 | . . . 1 2 1 . . . Average Overweight (x) . | . . . . 1 . . . . Largest Inventory Capacity 15 | 5 5 5 5 15 15 5 5 5 Average Capacity 10 | 5 5 5 5 13 8 5 5 5 Most Carried 15 | 2 4 4 5 15 11 5 5 4 Average Carried 7 | 1 2 3 4 9 5 4 4 4 Final Capacity 15 | 5 5 5 5 15 5 5 5 5 Final Carried 12 | 2 4 3 5 12 5 4 4 4 Class Distribution -------------------- 88% | Mutant 7% | Derelict-Sprinter Dominant Class ---------------- Mutant | -10/Materials Mutant | -10/Mines Mutant | -10/Subcaves Mutant | -8/Scraptown Derelict-Sprinter | -6/Factory Mutant | -6/Garrison Mutant | -6/Factory Mutant | -6/Lower Caves Resources | -11 -10 -10 -10 -8 -6 -6 -6 -6 ----------- Run | Yrd Mat Min Sub Scr Fac Gar Fac Low Matter Collected 627 | 232 . 22 83 120 100 70 . . Remotely . | . . . . . . . . . Salvage Created 316 | 68 . 22 36 . 99 70 21 . Parts 24 | 5 . 4 1 . 9 . 5 . Haulers Intercepted . | . . . . . . . . . Recyclers Shooed . | . . . . . . . . . Parts Field Recycled . | . . . . . . . . . Retrieved Matter . | . . . . . . . . . Parts Self-Destructed 6 | . . . 6 . . . . . Prevented . | . . . . . . . . . Kills | -11 -10 -10 -10 -8 -6 -6 -6 -6 ------- Run | Yrd Mat Min Sub Scr Fac Gar Fac Low Combat Hostiles Destroyed 12 | . . 3 1 . 5 . 3 . Melee 1 | . . . . . 1 . . . Guns 1 | . . . 1 . . . . . AOE 8 | . . 3 . . 2 . 3 . Classes Destroyed 7 | 2 . 1 1 . 3 . . . Tunneler 1 | 1 . . . . . . . . Recycler 1 | 1 . . . . . . . . Swarmer 6 | . . 3 . . . . 3 . Cutter 3 | . . . . . 3 . . . Grunt 1 | . . . . . 1 . . . Programmer 1 | . . . . . 1 . . . Subdweller 1 | . . . 1 . . . . . Best Kill Streak 4 | 2 . 3 1 . 4 . 3 . Combat Bots Only 4 | . . 3 1 . 4 . 3 . Max Kills in Single Turn 3 | 1 . 3 1 . 1 . 1 . Gunslinging . | . . . . . . . . . Exploded 3 | . . 3 . . 1 . 1 . Melee 1 | . . . . . 1 . . . Uniques/NPCs Destroyed . | . . . . . . . . . Combat | -11 -10 -10 -10 -8 -6 -6 -6 -6 -------- Run | Yrd Mat Min Sub Scr Fac Gar Fac Low Hostile Shots Fired 196 | . . 6 7 . 126 26 30 1 Missed 82 | . . 2 4 . 48 13 15 . Hits 114 | . . 4 3 . 78 13 15 1 Melee 5 | . . . . . 5 . . . Projectile 109 | . . 4 3 . 73 13 15 1 Critical Strikes 3 | . . . . . 2 1 . . Damage Taken 1498 | . . 32 53 . 976 225 194 18 Core 896 | . . 16 14 . 624 158 66 18 Absorbed by Shields 20 | . . . . . . 20 . . Core Remaining (%) 94 | 100 . . . 88 . . . . Volleys Fired 23 | 4 . 1 12 . 2 . 4 . Largest 2 | 1 . 1 2 . 1 . 2 . Hottest 120 | 20 . 30 120 . 30 . 70 . Shots Fired 26 | 4 . 1 14 . 2 . 5 . Gun 19 | 4 . . 14 . . . 1 . Cannon . | . . . . . . . . . Launcher 7 | . . 1 . . 2 . 4 . Special . | . . . . . . . . . Kinetic 4 | 4 . . . . . . . . Thermal 15 | . . . 14 . . . 1 . Explosive 7 | . . 1 . . 2 . 4 . Electromagnetic . | . . . . . . . . . Robot Hit Streak 8 | 2 . . 6 . 8 . 1 . Robot Miss Streak 3 | 2 . 1 3 . . . 1 . Penetration Max . | . . . . . . . . . Secondary Targets . | . . . . . . . . . Shots Hit Robots 23 | 2 . . 10 . 9 1 1 . Core Hits 17 | 3 . 3 2 . 5 . 4 . Critical Kills . | . . . . . . . . . Critical Parts Destroyed 2 | . . . . . 2 . . . Critical Strikes 2 | . . . . . 2 . . . Smash 2 | . . . . . 2 . . . Melee Attacks 25 | . . . 3 . 16 6 . . Impact 25 | . . . 3 . 16 6 . . Slashing . | . . . . . . . . . Piercing . | . . . . . . . . . Sneak Attacks 1 | . . . . . 1 . . . Combat Hostiles 1 | . . . . . 1 . . . Follow-up Attacks . | . . . . . . . . . Damage Inflicted 1250 | 36 . 106 204 . 514 52 338 . Guns 240 | 36 . . 204 . . . . . Cannons . | . . . . . . . . . Explosions 647 | . . 106 . . 203 . 338 . Melee 363 | . . . . . 311 52 . . Ramming . | . . . . . . . . . Kinetic 36 | 36 . . . . . . . . Thermal 204 | . . . 204 . . . . . Explosive 647 | . . 106 . . 203 . 338 . Electromagnetic . | . . . . . . . . . Impact 363 | . . . . . 311 52 . . Slashing . | . . . . . . . . . Piercing . | . . . . . . . . . Highest Corruption . | . . . . . . . . . Average Corruption . | . . . . . . . . . Corruption Purged . | . . . . . . . . . Corruption Blocked 1 | . . . . . 1 . . . Overload Shots . | . . . . . . . . . Overflow Damage 267 | . . 37 . . 114 43 73 . Projectiles . | . . . . . . . . . Explosions 133 | . . 37 . . 23 . 73 . Melee 134 | . . . . . 91 43 . . Knockbacks 2 | . . . . . 1 1 . . Impact 2 | . . . . . 1 1 . . Kinetic . | . . . . . . . . . Secondary . | . . . . . . . . . Self-Inflicted Damage 92 | . . . . . 92 . . . Shots 2 | . . . . . 2 . . . Rammed . | . . . . . . . . . Targets Rammed . | . . . . . . . . . Kicked . | . . . . . . . . . Crushed . | . . . . . . . . . Highest Temperature 18 | . . . 18 . . . . . Average Temperature 11 | . . . 11 . . . . . Received Heat Transfer 414 | . . . 15 . 249 114 27 9 Siege Activations . | . . . . . . . . . Martial Activations . | . . . . . . . . . Shielding Activations . | . . . . . . . . . Robots Disrupted . | . . . . . . . . . Combat Hostiles . | . . . . . . . . . Robots Corrupted 3 | . . . . . 2 1 . . Combat Hostiles 3 | . . . . . 2 1 . . Parts Fried 2 | . . . . . 2 . . . Impact Corruptions 5 | . . . . . 4 1 . . Robots Melted . | . . . . . . . . . Combat Hostiles . | . . . . . . . . . Parts Melted 1 | . . . 1 . . . . . Heat Transferred 250 | . . . 250 . . . . . Parts Sabotaged . | . . . . . . . . . Parts Stolen . | . . . . . . . . . Parts Stripped . | . . . . . . . . . Power Chain Reactions . | . . . . . . . . . Alert | -11 -10 -10 -10 -8 -6 -6 -6 -6 ------- Run | Yrd Mat Min Sub Scr Fac Gar Fac Low Maximum Alert Level 1 | . . . . . . 1 . . Low Security (%) 99 | 100 100 100 . . 100 96 100 . Level 1 . | . . . . . . 3 . . Level 2 . | . . . . . . . . . Level 3 . | . . . . . . . . . Level 4 . | . . . . . . . . . Level 5 . | . . . . . . . . . High Security . | . . . . . . . . . Max Security . | . . . . . . . . . Peak Influence 213 | 5 15 79 . . 144 213 143 . Initial 119 | . 3 1 . . . 86 119 . Average 59 | 2 3 35 . . 50 119 82 . Influence Increases 839 | 10 21 78 21 . 334 162 179 34 Destroy 0b10 Robot/C 300 | . . 60 20 . 140 . 60 20 Destroy 0b10 Robot/NC 15 | 10 . . . . . 5 . . Destroy Leader 70 | . . 10 . . 40 . 10 10 Allied During Kill 17 | . . . 1 . 12 . . 4 Successful Hack 36 | . 6 . . . 14 . 16 . Disable Machine 45 | . . . . . 30 . 15 . Anti-Garrison Action 50 | . . . . . . 50 . . Destroy Structure 51 | . . 8 . . 8 2 33 . Partial Spotted 75 | . . . . . 60 . 15 . Lose Combat Pursuer 180 | . 15 . . . 30 105 30 . Influence Decreases 738 | 5 21 83 21 . 210 58 299 41 Entered New Map 194 | . 2 4 . . . 38 109 41 Time Decay 394 | 5 19 79 21 . 90 . 180 . Lost Part 110 | . . . . . 80 20 10 . Lost Ally 40 | . . . . . 40 . . . Squads Dispatched 10 | . 1 1 . . 5 . 3 . Investigation 6 | . 1 . . . 2 . 3 . Extermination 1 | . . . . . 1 . . . Reinforcement 1 | . . . . . 1 . . . Assault 1 | . . 1 . . . . . . Garrison 1 | . . . . . 1 . . . Intercept . | . . . . . . . . . Searches Triggered . | . . . . . . . . . Construction Impeded . | . . . . . . . . . Haulers Reinforced . | . . . . . . . . . Active Scanning Responses . | . . . . . . . . . Cargo Convoy Interrupts . | . . . . . . . . . Stealth | -11 -10 -10 -10 -8 -6 -6 -6 -6 --------- Run | Yrd Mat Min Sub Scr Fac Gar Fac Low Distress Signals 1 | . . . . . 1 . . . Communications Jammed . | . . . . . . . . . Distress Signals . | . . . . . . . . . Times Spotted 54 | . 3 3 3 . 21 12 9 3 Peak Tracking Total 13 | . 3 3 1 . 10 13 4 3 Tactical Retreats 7 | . 1 . . . 2 2 2 . Traps | -11 -10 -10 -10 -8 -6 -6 -6 -6 ------- Run | Yrd Mat Min Sub Scr Fac Gar Fac Low Traps Triggered 2 | . 1 . . . . 1 . . Indirectly . | . . . . . . . . . Trap Hack Attempts . | . . . . . . . . . Triggered . | . . . . . . . . . Disarmed . | . . . . . . . . . Reprogrammed . | . . . . . . . . . Reused . | . . . . . . . . . Traps Extracted . | . . . . . . . . . Installed . | . . . . . . . . . Triggered . | . . . . . . . . . Machines | -11 -10 -10 -10 -8 -6 -6 -6 -6 ---------- Run | Yrd Mat Min Sub Scr Fac Gar Fac Low Machines Disabled 4 | . . . . . 2 1 1 . Max in Single Turn 1 | . . . . . 1 1 1 . Garrison Access 1 | . . . . . . . 1 . Garrison Relay 1 | . . . . . . 1 . . Machines Repaired . | . . . . . . . . . Machines Dismantled . | . . . . . . . . . Machines Sabotaged . | . . . . . . . . . Overloaded Fab Kills . | . . . . . . . . . Hacking | -11 -10 -10 -10 -8 -6 -6 -6 -6 --------- Run | Yrd Mat Min Sub Scr Fac Gar Fac Low Machines Accessed 23 | . 3 1 . 5 5 . 9 . Terminals 8 | . 3 . . . 2 . 3 . Fabricators 1 | . . . . . . . 1 . Repair Stations 1 | . . . . . . . 1 . Recycling Units 5 | . . . . . 2 . 3 . Scanalyzers . | . . . . . . . . . Garrison Access 2 | . . . . . 1 . 1 . Total Hacks 69 | . 9 1 . 30 12 . 17 . Successful 42 | . 2 1 . 30 4 . 5 . Failed 27 | . 7 . . . 8 . 12 . Catastrophic 4 | . 1 . . . . . 3 . Database Lockouts . | . . . . . . . . . Manual 30 | . 9 . . . 11 . 10 . Terminals 22 | . 9 . . . 6 . 7 . Fabricators 2 | . . . . . . . 2 . Repair Stations 1 | . . . . . . . 1 . Recycling Units 11 | . . . . . 5 . 6 . Scanalyzers . | . . . . . . . . . Garrison Access 2 | . . . . . 1 . 1 . Terminal Hacks 31 | . . 1 . 30 . . . . Record 30 | . . . . 30 . . . . Open Door 1 | . . 1 . . . . . . Fabricator Hacks 1 | . . . . . . . 1 . Network Status 1 | . . . . . . . 1 . Repair Station Hacks 1 | . . . . . . . 1 . Refit 1 | . . . . . . . 1 . Recycling Unit Hacks . | . . . . . . . . . Scanalyzer . | . . . . . . . . . Garrison Access Hacks 2 | . . . . . 1 . 1 . Unlock Access 1 | . . . . . 1 . . . Seal Access 1 | . . . . . . . 1 . Unauthorized Hacks 7 | . 2 . . . 3 . 2 . Terminals 3 | . 2 . . . 1 . . . Assimilate 1 | . 1 . . . . . . . Botnet 1 | . . . . . 1 . . . Skim 1 | . 1 . . . . . . . Fabricators . | . . . . . . . . . Repair Stations . | . . . . . . . . . Recycling Units 4 | . . . . . 2 . 2 . Fedlink 4 | . . . . . 2 . 2 . Scanalyzers . | . . . . . . . . . Garrison Access . | . . . . . . . . . Data Cores Recovered . | . . . . . . . . . Used . | . . . . . . . . . Hacking Detections 10 | . 3 . . . 3 . 4 . Full Trace Events 2 | . 1 . . . . . 1 . Feedback Events . | . . . . . . . . . Feedback Blocked 1 | . . . . . . . 1 . Robot Schematics Acquired . | . . . . . . . . . Robots Built . | . . . . . . . . . Authchips . | . . . . . . . . . Time . | . . . . . . . . . Total Robot Build Rating . | . . . . . . . . . Part Schematics Acquired . | . . . . . . . . . Parts Built . | . . . . . . . . . Authchips . | . . . . . . . . . Time . | . . . . . . . . . Total Part Build Rating . | . . . . . . . . . Parts Repaired . | . . . . . . . . . Time . | . . . . . . . . . Parts Recycled . | . . . . . . . . . Recycled Matter . | . . . . . . . . . Retrieved Matter . | . . . . . . . . . Retrieved Components . | . . . . . . . . . Parts Scanalyzed . | . . . . . . . . . Part Schematics Acquired . | . . . . . . . . . Parts Damaged . | . . . . . . . . . Bothacking | -11 -10 -10 -10 -8 -6 -6 -6 -6 ------------ Run | Yrd Mat Min Sub Scr Fac Gar Fac Low Used RIF Installer . | . . . . . . . . . Robots Hacked . | . . . . . . . . . Non-combat . | . . . . . . . . . Combat . | . . . . . . . . . Robot Hacks Applied . | . . . . . . . . . Relay Couplers Released 3 | . . . . . . 3 . . Machine Destruction 3 | . . . . . . 3 . . Fabnet Peak Effective % . | . . . . . . . . . Robots Rewired . | . . . . . . . . . Allies Hacked . | . . . . . . . . . Hacks Repelled . | . . . . . . . . . Allies | -11 -10 -10 -10 -8 -6 -6 -6 -6 -------- Run | Yrd Mat Min Sub Scr Fac Gar Fac Low Total Allies 3 | . . 1 . 1 . . . 1 Largest Group 2 | . . 1 1 2 2 . . . Highest-Rated Group 98 | . . 31 31 98 98 . . . Highest-Rated Ally 72 | . . 31 31 67 72 . . . Total Orders . | . . . . . . . . . Ally Attacks 28 | . . . 13 . 14 . . 1 Total Damage 580 | . . . 208 . 241 . . 131 Kills 5 | . . . 2 . 2 . . 1 Allies Corrupted . | . . . . . . . . . Allies Melted . | . . . . . . . . . Intel | -11 -10 -10 -10 -8 -6 -6 -6 -6 ------- Run | Yrd Mat Min Sub Scr Fac Gar Fac Low Active Infowar (turns) 1170 | 6 91 192 175 . 253 81 370 2 Optics 453 | . . . . . . 81 370 2 Sensors 70 | . . . . . 70 . . . IFF 183 | . . . . . 183 . . . Terrain 464 | 6 91 192 175 . . . . . Robot Analysis Total . | . . . . . . . . . Derelict Logs Recovered 4 | . . 1 1 2 . . . . Drone Launches . | . . . . . . . . . Drone Recoveries . | . . . . . . . . . Exploration | -11 -10 -10 -10 -8 -6 -6 -6 -6 ------------- Run | Yrd Mat Min Sub Scr Fac Gar Fac Low Turns Passed 3148 | 33 91 192 290 1772 294 104 370 2 Spaces Moved 3711 | 40 200 320 308 1425 492 169 753 4 Core 443 | 40 47 . . . 3 65 288 . Treads . | . . . . . . . . . Legs . | . . . . . . . . . Wheels . | . . . . . . . . . Hover 26 | . . . . . . . 26 . Flight 3242 | . 153 320 308 1425 489 104 439 4 Fastest Speed 28 | 50 40 37 37 34 28 35 32 32 Average Speed 69 | 50 42 37 38 118 29 40 41 32 Slowest Speed 194 | 50 50 40 117 194 112 50 76 32 Overloaded Moves . | . . . . . . . . . Propulsion Burnouts . | . . . . . . . . . Robots Hopped 16 | . 2 . . . 9 2 3 . Potential Cave-ins . | . . . . . . . . . Cave-ins Triggered . | . . . . . . . . . Exploration Rate (%) 34 | 2 41 86 24 88 11 30 21 3 Regions Visited 8 Branch Regions 4 Pre-discovered Areas 2 | . . 1 . . 1 . . . Known Exits Taken 3 | . . . . 1 1 . 1 . Unknown Exits Taken 4 | 1 1 1 1 . . . . . Scrap Searched 5 | . . . . 5 . . . . Spaces Dug 7 | . . . 3 . 2 2 . . Terrain Destroyed 56 | . . 10 3 . 8 2 33 . Melee 7 | . . . 3 . 2 2 . . Projectile . | . . . . . . . . . AOE 49 | . . 10 . . 6 . 33 . Terrain Rammed . | . . . . . . . . . Walls Destroyed . | . . . . . . . . . Machines Disabled . | . . . . . . . . . Actions | -11 -10 -10 -10 -8 -6 -6 -6 -6 --------- Run | Yrd Mat Min Sub Scr Fac Gar Fac Low Total 4200 | 47 202 390 458 1511 596 190 802 4 Wait 333 | . . 66 125 27 71 . 44 . Move 3675 | 39 195 319 307 1424 477 164 746 4 Hop 13 | . 2 . . . 6 2 3 . Pick Up 32 | 2 1 . 2 25 1 1 . . Fast Attach 21 | 2 3 2 1 2 7 1 3 . Attach 17 | . . 1 1 4 8 2 1 . Detach 10 | . 1 . 3 2 2 1 1 . Swap 11 | . . 1 2 5 3 . . . Drop 28 | . . . 2 22 3 1 . . Fire 23 | 4 . 1 12 . 2 . 4 . Melee 25 | . . . 3 . 16 6 . . Ram . | . . . . . . . . . Kick . | . . . . . . . . . Crush . | . . . . . . . . . Escape Stasis 12 | . . . . . . 12 . . Rewire . | . . . . . . . . . Trap . | . . . . . . . . . Miscellaneous . | . . . . . . . . . Route ------- -11/Scrapyard -10/Materials -10/Mines (discovered 3 exits: [*Mat x2] / [*Sub]) -10/Subcaves -8/Scraptown (discovered 2 exits: *Fac x2) -6/Factory -6/Garrison -6/Factory (discovered 2 exits: *Low / *Ext) -6/Lower Caves History --------- Turn | Location | Event 7 | -11/Scrapyard | Discovered new exit (range 15) 34 | -11/Scrapyard | Entered Materials 93 | -10/Materials | Discovered new exit (range 8) 125 | -10/Materials | Entered Mines 142 | -10/Mines | Found a Scrap Suit stashed away for nefarious purposes 147 | -10/Mines | Met a Derelict testing a Signal Generator 181 | -10/Mines | Received a Rocket Launcher from a helpful Derelict 213 | -10/Mines | Discovered new exit (range 5) 232 | -10/Mines | Discovered new exit (range 11) 249 | -10/Mines | Discovered new exit (range 15) 265 | -10/Mines | Met a Derelict who couldn't figure out how to use a Trap Extractor 309 | -10/Mines | Build established: Mutant 317 | -10/Mines | Entered Subcaves 317 | -10/Subcaves | Accompanied by 1 ally 318 | -10/Subcaves | Approached by a straggling Scientist 321 | -10/Subcaves | Learned Materials trap positions 326 | -10/Subcaves | Shifting Twisted Machinery released Sub. Laser 588 | -10/Subcaves | Scientist uncovered a shortcut to Scraptown 607 | -10/Subcaves | Entered Scraptown 607 | -8/Scraptown | Accompanied by 1 ally 650 | -8/Scraptown | Visited UFD Registry 650 | -8/Scraptown | Registered with UFD as "Protoshaft" 654 | -8/Scraptown | Visited IN-MT5's Study 664 | -8/Scraptown | Visited Fellowship of the Rings 667 | -8/Scraptown | Visited Assassins FH 672 | -8/Scraptown | Heard Great Nut preacher, LISTEN AND RECITE! 673 | -8/Scraptown | Visited Cyclists 677 | -8/Scraptown | Entered Cyclist Reading Room 686 | -8/Scraptown | Visited Comm Corps 699 | -8/Scraptown | Visited Spacefarers 712 | -8/Scraptown | Visited Cave Peace 782 | -8/Scraptown | Scanned Subdweller tech in exchange for log data 789 | -8/Scraptown | Learned Factory terminal intel 789 | -8/Scraptown | Learned Research garrison access intel 802 | -8/Scraptown | Discovered new exit (range 11) 809 | -8/Scraptown | Guru changed UFD alias to "Cogdrive" 1206 | -8/Scraptown | Visited DA-N13 Charitable Foundation 1214 | -8/Scraptown | Found DCF Scrap (29 items) 1302 | -8/Scraptown | Visited Science Testing Area 1506 | -8/Scraptown | Visited Supply Room 1572 | -8/Scraptown | Visited Chapter 10 1616 | -8/Scraptown | Visited Infowarlord's Domain 1659 | -8/Scraptown | Visited Curators Association 1725 | -8/Scraptown | Visited Botcube Research 1739 | -8/Scraptown | Found Lrg. Botcube 1973 | -8/Scraptown | Visited Scrap Suit Storage 1983 | -8/Scraptown | Found Scrap Suit 2100 | -8/Scraptown | Lrg. Botcube activated 2124 | -8/Scraptown | Lrg. Botcube completed mutation into legged form, armed with 1 gun, 1 melee weapon. 2212 | -8/Scraptown | Received an X-ray algorithm 2239 | -8/Scraptown | Found Exp. Terrain Scan Processor 2311 | -8/Scraptown | Met Optimus 2311 | -8/Scraptown | Accepted into 0bPrime 2373 | -8/Scraptown | Discovered new exit (range 3) 2374 | -8/Scraptown | Identified exit to Factory 2379 | -8/Scraptown | Entered Factory 2379 | -6/Factory | Accompanied by 2 allies 2379 | -6/Factory | Evolved 8 slots: Propulsion x4, Utility x4 2380 | -6/Factory | Loaded intel: 28 terminal locations 2441 | -6/Factory | Loaded intel: 7 recycling unit locations 2442 | -6/Factory | Learned location of Protoforge (-2) 2456 | -6/Factory | Spotted B-75 Beast 2631 | -6/Factory | Lost 3 parts (1p2n) 2664 | -6/Factory | Core integrity fell below 50% 2673 | -6/Factory | Identified exit to Garrison 2673 | -6/Factory | Entered Garrison 2700 | -6/Garrison | Lost 5 parts (1p2n2u) 2713 | -6/Garrison | Triggered checkpoint 2725 | -6/Garrison | Garrison Relay disabled 2731 | -6/Garrison | Core integrity fell below 20% 2742 | -6/Garrison | Spotted B-75 Beast 2746 | -6/Garrison | Triggered checkpoint 2748 | -6/Garrison | Triggered checkpoint 2772 | -6/Garrison | Discovered new exit (range 11) 2777 | -6/Garrison | Identified exit to Factory 2777 | -6/Garrison | Entered Factory 2803 | -6/Factory | Loaded intel: 8 recycling unit locations 2976 | -6/Factory | Discovered new exit (range 12) 2995 | -6/Factory | Identified exit to Extension 3139 | -6/Factory | Discovered new exit (range 7) 3141 | -6/Factory | Identified exit to Lower Caves 3147 | -6/Factory | Entered Lower Caves 3148 | -6/Lower Caves | P1-3CE showed up to help 3149 | -6/Lower Caves | Destroyed by G-50 Soldier with Heavy Laser Last Messages --------------- System (124,52) - Loaded: H-66 Slayer (126,165) - Loaded: E-15 Imp 03113_ K-01 Serf cleans the Neutrino Reactor. 03120_ Acquired Adv. Signal Interpreter. 03134_ Connecting with Recycling Unit... Feedback blocked by System Shield. 03134_ ALERT: Suspicious activity at Recycling Unit F003. Dispatching Investigation squad. 03139_ EXIT=FOUND 03139_ Backup Power III destroyed. 03141_ EXIT=IDENTIFIED: LOWER CAVES 03146_ ALERT: Security rotation in progress. LOCATION=LOWER CAVES GOAL=ESCAPE A strange signal echoes through the caves. P1-3CE: "Let me deal with this, you get out of here!" 03148_ B-48 Gladiator destroyed. Map ----- +----------------------------------------------------+ | ????????????????????????????????????????????????? | | ????????????????????????????????????????????????? | | ????????????????????????????????????????????????? | | ????????????????????????????????????????????????? | | ????????????????????????????????????????????????? | | ????????????????????????????????????????????????? | | ????????????????????????????????????????????????? | | ????????????????????????????????????????????????? | | ????????????????????????????????????????????????? | | ????????????????????????????????????????????????? | | ????????????????????????????????????????????????? | | ????????????????????????????????????????????????? | | ????????????????????????????????????????????????? | | ??????????????????????????????###???????????????? | | ????????????????????????###?## ##??????????????? | | ????????????????????????#g## ???????????????? | | ???????????????????????##%/ ????????????????? | | ???????????????????????# = ?????????????????? | | ???????????????????????# g #??????????????????? | | ?????????????????#????## #???????????????????? | | ?????????????????# ??## ##??????????????????? | | ?????????????????# ## M #??????????????????? | | ?????????????# ## #??????????????????? | | ?????????????# ###??????????????????? | | ?????????????# ##????????????????????? | | ?????????????# @#?????????????????????? | | ?????????????# #????????????????????? | | ?????????????### ???????????????????? | | ???????????????##### ??????????????????? | | ???????????????????# #?????????????????? | | ???????????????????# #######?????????????????? | | ???????????????????## #????????????????????????? | | ????????????????????###?????????????????????????? | | ????????????????????????????????????????????????? | | ????????????????????????????????????????????????? | | ????????????????????????????????????????????????? | | ????????????????????????????????????????????????? | | ????????????????????????????????????????????????? | | ????????????????????????????????????????????????? | | ????????????????????????????????????????????????? | | ????????????????????????????????????????????????? | | ????????????????????????????????????????????????? | | ????????????????????????????????????????????????? | | ????????????????????????????????????????????????? | | ????????????????????????????????????????????????? | | ????????????????????????????????????????????????? | | ????????????????????????????????????????????????? | | ????????????????????????????????????????????????? | | ????????????????????????????????????????????????? | | ????????????????????????????????????????????????? | +----------------------------------------------------+ Best States ------------- Heat Dissipation 37 Energy Generation 15 Energy Capacity 200 Matter Stores 300 Matter Capacity 300 Sight Range 20 Robot Scan Range 15 Terrain Scan Range 16 Terrain Scan Density 85 Corruption Block 4 Armor Coverage 150 Evasion (%) 64 Targeting Accuracy 8 Defensive Hacking 20 Item Schematics ----------------- None Robot Schematics ------------------ None Fabricated ------------ Nothing Repaired ---------- Nothing Alien Tech Used ----------------- None Achievements -------------- None Challenges ------------ None Game ------ Seed EfficiencyZhirovMask Manual? 0 Play Time 00:39:50 Cumulative 292.1 hours Start 2025.06.30 @ 16:53:33 End 2025.06.30 @ 17:34:11 Sessions 1 Manual Loads 0 Difficulty Rogue Special Mode None Game No. 144 Rogue 144 Adventurer 0 Explorer 0 Win Type - Total 19 Types 7/0/5/1/4/1/0/0/0/1 Lore% 86 Gallery% 74 Achievement% 72 Wizard Run 0 Options --------- Layout 1 ASCII 0 Keyboard 0 Movement Numpad Keybinds 0 Fullscreen 1 Font 24/Smallcaps Map View 50x35 Zoom Use 0% Tactical HUD 1 Map Filters NONE Filters NONE Steam 1 RUN: 777ce178-8dcd-4c37-bc74-fd5faf0edce4